Workbook

Sheet Worksheetfunction
A1: Sum | B1: 800 | E1: Check: | F1: =SUM(IFERROR(F9:F34,0)) -> 800
A2: Lower Bound | B2: 35
A3: Upper Bound | B3: 45
A4: Count | B4: 21
A7: Run | B7: Sum | C7: Count | D7: Lower Bound | E7: Upper Bound | F7: Random draw
A8: 0 | B8: =$B$1 -> 800 | C8: =$B$4 -> 21 | D8: =$B$2 -> 35 | E8: =$B$3 -> 45
A9: =A8+1 -> 1 | B9: =B8-F8 -> 800 | C9: =C8-1*(A9<>1) -> 21 | D9: =ROUNDUP(MAX(D8,MIN(B9/C9,B9/C9-(C9-1)*(E8-B9/C9))),0) -> 35 | E9: =ROUNDDOWN(MIN(E8,MAX(B9/C9,B9/C9+(C9-1)*(B9/C9-D8))),0) -> 45 | F9: =INT(RAND()*(E9-D9+1)+D9) -> 42
A10: =A9+1 -> 2 | B10: =B9-F9 -> 758 | C10: =C9-1*(A10<>1) -> 20 | D10: =ROUNDUP(MAX(D9,MIN(B10/C10,B10/C10-(C10-1)*(E9-B10/C10))),0) -> 35 | E10: =ROUNDDOWN(MIN(E9,MAX(B10/C10,B10/C10+(C10-1)*(B10/C10-D9))),0) -> 45 | F10: =INT(RAND()*(E10-D10+1)+D10) -> 39
A11: =A10+1 -> 3 | B11: 719 | C11: =C10-1*(A11<>1) -> 19 | D11: 35 | E11: 45 | F11: 35
A12: =A11+1 -> 4 | B12: 684 | C12: =C11-1*(A12<>1) -> 18 | D12: 35 | E12: 45 | F12: 37
A13: =A12+1 -> 5 | B13: 647 | C13: =C12-1*(A13<>1) -> 17 | D13: 35 | E13: 45 | F13: 42
A14: 6 | B14: 605 | C14: 16 | D14: 35 | E14: 45 | F14: 41
A15: 7 | B15: 564 | C15: 15 | D15: 35 | E15: 45 | F15: 35
A16: 8 | B16: 529 | C16: 14 | D16: 35 | E16: 45 | F16: 38
A17: 9 | B17: 491 | C17: 13 | D17: 35 | E17: 45 | F17: 44
A18: 10 | B18: 447 | C18: 12 | D18: 35 | E18: 45 | F18: 40
A19: 11 | B19: 407 | C19: 11 | D19: 35 | E19: 45 | F19: 39
A20: 12 | B20: 368 | C20: 10 | D20: 35 | E20: 45 | F20: 45
A21: 13 | B21: 323 | C21: 9 | D21: 35 | E21: 43 | F21: 39
A22: 14 | B22: 284 | C22: 8 | D22: 35 | E22: 39 | F22: 38
A23: 15 | B23: 246 | C23: 7 | D23: 35 | E23: 36 | F23: 36
A24: 16 | B24: 210 | C24: 6 | D24: 35 | E24: 35 | F24: 35
A25: 17 | B25: 175 | C25: 5 | D25: 35 | E25: 35 | F25: 35
A26: 18 | B26: 140 | C26: 4 | D26: 35 | E26: 35 | F26: 35
A27: 19 | B27: 105 | C27: 3 | D27: 35 | E27: 35 | F27: 35
A28: 20 | B28: 70 | C28: 2 | D28: 35 | E28: 35 | F28: 35
A29: 21 | B29: 35 | C29: 1 | D29: 35 | E29: 35 | F29: 35

Sheet VBA
A1: Sum | B1: 800
A2: Lower Bound | B2: 35
A3: Upper Bound | B3: 45 | E3: Button to control re-generation of new random numbers
A4: Count | B4: 21
B6: Direct Array Formula
B7: =sbRandIntFixSum(B1,B2,B3,B4) -> 44 | E7: 35
B8: 36 | E8: 39
B9: 36 | E9: 37
B10: 41 | E10: 39
B11: 36 | E11: 38
B12: 37 | E12: 38
B13: 45 | E13: 39
B14: 35 | E14: 39
B15: 39 | E15: 42
B16: 39 | E16: 43
B17: 43 | E17: 42
B18: 37 | E18: 42
B19: 44 | E19: 42
B20: 38 | E20: 37
B21: 36 | E21: 35
B22: 36 | E22: 35
B23: 35 | E23: 35
B24: 37 | E24: 35
B25: 35 | E25: 36
B26: 35 | E26: 37
B27: 36 | E27: 35
A29: Total | B29: =SUM(B7:B27) -> 800 | D29: Total | E29: =SUM(E7:E27) -> 800

Sheet Worksheet_for_Double_Solution
A1: Sum | B1: =509*20.44 -> 10403.96 | E1: Check: | F1: =SUM(IFERROR(F9:F517,0)) -> 10403.96
A2: Lower Bound | B2: 0.1
A3: Upper Bound | B3: 100
A4: Count | B4: 509
A7: Run | B7: Sum | C7: Count | D7: Lower Bound | E7: Upper Bound | F7: Random draw
A8: 0 | B8: =$B$1 -> 10403.96 | C8: =$B$4 -> 509 | D8: =$B$2 -> 0.1 | E8: =$B$3 -> 100
A9: =A8+1 -> 1 | B9: =B8-F8 -> 10403.96 | C9: =C8-1*(A9<>1) -> 509 | D9: =MAX(D8,MIN(B9/C9,B9/C9-(C9-1)*(E8-B9/C9))) -> 0.1 | E9: =MIN(E8,MAX(B9/C9,B9/C9+(C9-1)*(B9/C9-D8))) -> 100 | F9: =RAND()*(E9-D9)+D9 -> 73.09260504
A10: =A9+1 -> 2 | B10: =B9-F9 -> 10330.86739 | C10: =C9-1*(A10<>1) -> 508 | D10: =MAX(D9,MIN(B10/C10,B10/C10-(C10-1)*(E9-B10/C10))) -> 0.1 | E10: =MIN(E9,MAX(B10/C10,B10/C10+(C10-1)*(B10/C10-D9))) -> 100 | F10: =RAND()*(E10-D10)+D10 -> 28.32499568
A11: 3 | B11: 10302.5424 | C11: 507 | D11: 0.1 | E11: 100 | F11: 57.25720142
A12: 4 | B12: 10245.2852 | C12: 506 | D12: 0.1 | E12: 100 | F12: 68.78040893
A13: 5 | B13: 10176.50479 | C13: 505 | D13: 0.1 | E13: 100 | F13: 97.57572221
A14: 6 | B14: 10078.92907 | C14: 504 | D14: 0.1 | E14: 100 | F14: 7.448263571
A15: 7 | B15: 10071.4808 | C15: 503 | D15: 0.1 | E15: 100 | F15: 58.11973249
A16: 8 | B16: 10013.36107 | C16: 502 | D16: 0.1 | E16: 100 | F16: 26.65427593
A17: 9 | B17: 9986.706795 | C17: 501 | D17: 0.1 | E17: 100 | F17: 9.366192622
A18: 10 | B18: 9977.340602 | C18: 500 | D18: 0.1 | E18: 100 | F18: 37.48429563
A19: 11 | B19: 9939.856306 | C19: 499 | D19: 0.1 | E19: 100 | F19: 44.48013552
A20: 12 | B20: 9895.376171 | C20: 498 | D20: 0.1 | E20: 100 | F20: 70.31274933
A21: 13 | B21: 9825.063422 | C21: 497 | D21: 0.1 | E21: 100 | F21: 70.99740813
A22: 14 | B22: 9754.066014 | C22: 496 | D22: 0.1 | E22: 100 | F22: 85.40147032
A23: 15 | B23: 9668.664543 | C23: 495 | D23: 0.1 | E23: 100 | F23: 83.95672106
A24: 16 | B24: 9584.707822 | C24: 494 | D24: 0.1 | E24: 100 | F24: 58.08415408
A25: 17 | B25: 9526.623668 | C25: 493 | D25: 0.1 | E25: 100 | F25: 16.62094427
A26: 18 | B26: 9510.002724 | C26: 492 | D26: 0.1 | E26: 100 | F26: 79.72772703
A27: 19 | B27: 9430.274997 | C27: 491 | D27: 0.1 | E27: 100 | F27: 63.95940718
A28: 20 | B28: 9366.31559 | C28: 490 | D28: 0.1 | E28: 100 | F28: 5.027045709
A29: 21 | B29: 9361.288544 | C29: 489 | D29: 0.1 | E29: 100 | F29: 78.65555129
A30: 22 | B30: 9282.632993 | C30: 488 | D30: 0.1 | E30: 100 | F30: 70.59962988
A31: 23 | B31: 9212.033363 | C31: 487 | D31: 0.1 | E31: 100 | F31: 59.61449359
A32: 24 | B32: 9152.418869 | C32: 486 | D32: 0.1 | E32: 100 | F32: 29.99630693
A33: 25 | B33: 9122.422562 | C33: 485 | D33: 0.1 | E33: 100 | F33: 16.58169877
A34: 26 | B34: 9105.840863 | C34: 484 | D34: 0.1 | E34: 100 | F34: 87.0521438
A35: 27 | B35: 9018.78872 | C35: 483 | D35: 0.1 | E35: 100 | F35: 17.29835992
A36: 28 | B36: 9001.49036 | C36: 482 | D36: 0.1 | E36: 100 | F36: 1.123623075
A37: 29 | B37: 9000.366737 | C37: 481 | D37: 0.1 | E37: 100 | F37: 8.29420797
A38: 30 | B38: 8992.072529 | C38: 480 | D38: 0.1 | E38: 100 | F38: 46.40441172
A39: 31 | B39: 8945.668117 | C39: 479 | D39: 0.1 | E39: 100 | F39: 25.68617371
A40: 32 | B40: 8919.981943 | C40: 478 | D40: 0.1 | E40: 100 | F40: 14.40666841
A41: 33 | B41: 8905.575275 | C41: 477 | D41: 0.1 | E41: 100 | F41: 53.53025605
A42: 34 | B42: 8852.045019 | C42: 476 | D42: 0.1 | E42: 100 | F42: 62.52502252
A43: 35 | B43: 8789.519996 | C43: 475 | D43: 0.1 | E43: 100 | F43: 54.23863065
A44: 36 | B44: 8735.281366 | C44: 474 | D44: 0.1 | E44: 100 | F44: 5.16856784
A45: 37 | B45: 8730.112798 | C45: 473 | D45: 0.1 | E45: 100 | F45: 21.98870731
A46: 38 | B46: 8708.12409 | C46: 472 | D46: 0.1 | E46: 100 | F46: 46.80790885
A47: 39 | B47: 8661.316182 | C47: 471 | D47: 0.1 | E47: 100 | F47: 14.91418068
A48: 40 | B48: 8646.402001 | C48: 470 | D48: 0.1 | E48: 100 | F48: 91.00775132
A49: 41 | B49: 8555.39425 | C49: 469 | D49: 0.1 | E49: 100 | F49: 41.32116398
A50: 42 | B50: 8514.073086 | C50: 468 | D50: 0.1 | E50: 100 | F50: 23.55270115
A51: 43 | B51: 8490.520384 | C51: 467 | D51: 0.1 | E51: 100 | F51: 99.96458979
A52: 44 | B52: 8390.555795 | C52: 466 | D52: 0.1 | E52: 100 | F52: 24.62357191
A53: 45 | B53: 8365.932223 | C53: 465 | D53: 0.1 | E53: 100 | F53: 91.00493207
A54: 46 | B54: 8274.927291 | C54: 464 | D54: 0.1 | E54: 100 | F54: 87.19101196
A55: 47 | B55: 8187.736279 | C55: 463 | D55: 0.1 | E55: 100 | F55: 47.05479712
A56: 48 | B56: 8140.681482 | C56: 462 | D56: 0.1 | E56: 100 | F56: 11.04289528
A57: 49 | B57: 8129.638586 | C57: 461 | D57: 0.1 | E57: 100 | F57: 74.99594687
A58: 50 | B58: 8054.642639 | C58: 460 | D58: 0.1 | E58: 100 | F58: 96.02448759
A59: 51 | B59: 7958.618152 | C59: 459 | D59: 0.1 | E59: 100 | F59: 49.68557306
A60: 52 | B60: 7908.932579 | C60: 458 | D60: 0.1 | E60: 100 | F60: 44.67973502
A61: 53 | B61: 7864.252844 | C61: 457 | D61: 0.1 | E61: 100 | F61: 18.94384534
A62: 54 | B62: 7845.308998 | C62: 456 | D62: 0.1 | E62: 100 | F62: 59.56418254
A63: 55 | B63: 7785.744816 | C63: 455 | D63: 0.1 | E63: 100 | F63: 16.12145324
A64: 56 | B64: 7769.623363 | C64: 454 | D64: 0.1 | E64: 100 | F64: 68.56293236
A65: 57 | B65: 7701.06043 | C65: 453 | D65: 0.1 | E65: 100 | F65: 16.74764896
A66: 58 | B66: 7684.312781 | C66: 452 | D66: 0.1 | E66: 100 | F66: 69.04372786
A67: 59 | B67: 7615.269053 | C67: 451 | D67: 0.1 | E67: 100 | F67: 70.37835076
A68: 60 | B68: 7544.890703 | C68: 450 | D68: 0.1 | E68: 100 | F68: 40.83184718
A69: 61 | B69: 7504.058856 | C69: 449 | D69: 0.1 | E69: 100 | F69: 35.85459715
A70: 62 | B70: 7468.204258 | C70: 448 | D70: 0.1 | E70: 100 | F70: 77.78874091
A71: 63 | B71: 7390.415517 | C71: 447 | D71: 0.1 | E71: 100 | F71: 55.34632419
A72: 64 | B72: 7335.069193 | C72: 446 | D72: 0.1 | E72: 100 | F72: 8.621934605
A73: 65 | B73: 7326.447259 | C73: 445 | D73: 0.1 | E73: 100 | F73: 25.21417724
A74: =A73+1 -> 66 | B74: =B73-F73 -> 7301.233081 | C74: =C73-1*(A74<>1) -> 444 | D74: =MAX(D73,MIN(B74/C74,B74/C74-(C74-1)*(E73-B74/C74))) -> 0.1 | E74: =MIN(E73,MAX(B74/C74,B74/C74+(C74-1)*(B74/C74-D73))) -> 100 | F74: =RAND()*(E74-D74)+D74 -> 2.094741855
A75: 67 | B75: 7299.13834 | C75: 443 | D75: 0.1 | E75: 100 | F75: 17.5375139
A76: 68 | B76: 7281.600826 | C76: 442 | D76: 0.1 | E76: 100 | F76: 59.33390432
A77: 69 | B77: 7222.266921 | C77: 441 | D77: 0.1 | E77: 100 | F77: 46.89917748
A78: 70 | B78: 7175.367744 | C78: 440 | D78: 0.1 | E78: 100 | F78: 28.95345525
A79: 71 | B79: 7146.414289 | C79: 439 | D79: 0.1 | E79: 100 | F79: 90.64724087
A80: 72 | B80: 7055.767048 | C80: 438 | D80: 0.1 | E80: 100 | F80: 94.15946785
A81: 73 | B81: 6961.60758 | C81: 437 | D81: 0.1 | E81: 100 | F81: 98.92814214
A82: 74 | B82: 6862.679438 | C82: 436 | D82: 0.1 | E82: 100 | F82: 92.88557532
A83: 75 | B83: 6769.793862 | C83: 435 | D83: 0.1 | E83: 100 | F83: 80.34005525
A84: 76 | B84: 6689.453807 | C84: 434 | D84: 0.1 | E84: 100 | F84: 52.89753598
A85: 77 | B85: 6636.556271 | C85: 433 | D85: 0.1 | E85: 100 | F85: 9.902755906
A86: 78 | B86: 6626.653515 | C86: 432 | D86: 0.1 | E86: 100 | F86: 79.62402656
A87: 79 | B87: 6547.029489 | C87: 431 | D87: 0.1 | E87: 100 | F87: 52.1990675
A88: 80 | B88: 6494.830421 | C88: 430 | D88: 0.1 | E88: 100 | F88: 24.97450641
A89: 81 | B89: 6469.855915 | C89: 429 | D89: 0.1 | E89: 100 | F89: 92.92377867
A90: 82 | B90: 6376.932136 | C90: 428 | D90: 0.1 | E90: 100 | F90: 74.32096746
A91: 83 | B91: 6302.611169 | C91: 427 | D91: 0.1 | E91: 100 | F91: 94.87550041
A92: 84 | B92: 6207.735668 | C92: 426 | D92: 0.1 | E92: 100 | F92: 16.69469933
A93: 85 | B93: 6191.040969 | C93: 425 | D93: 0.1 | E93: 100 | F93: 89.68637116
A94: 86 | B94: 6101.354598 | C94: 424 | D94: 0.1 | E94: 100 | F94: 81.7180988
A95: 87 | B95: 6019.636499 | C95: 423 | D95: 0.1 | E95: 100 | F95: 64.7609475
A96: 88 | B96: 5954.875552 | C96: 422 | D96: 0.1 | E96: 100 | F96: 62.30257915
A97: 89 | B97: 5892.572972 | C97: 421 | D97: 0.1 | E97: 100 | F97: 30.48309826
A98: 90 | B98: 5862.089874 | C98: 420 | D98: 0.1 | E98: 100 | F98: 0.8196269103
A99: 91 | B99: 5861.270247 | C99: 419 | D99: 0.1 | E99: 100 | F99: 31.10401058
A100: 92 | B100: 5830.166237 | C100: 418 | D100: 0.1 | E100: 100 | F100: 29.30198712
A101: 93 | B101: 5800.86425 | C101: 417 | D101: 0.1 | E101: 100 | F101: 77.65545587
A102: 94 | B102: 5723.208794 | C102: 416 | D102: 0.1 | E102: 100 | F102: 98.50330716
A103: 95 | B103: 5624.705486 | C103: 415 | D103: 0.1 | E103: 100 | F103: 77.0484748
A104: 96 | B104: 5547.657012 | C104: 414 | D104: 0.1 | E104: 100 | F104: 49.58799785
A105: 97 | B105: 5498.069014 | C105: 413 | D105: 0.1 | E105: 100 | F105: 70.91833492
A106: 98 | B106: 5427.150679 | C106: 412 | D106: 0.1 | E106: 100 | F106: 25.57797872
A107: 99 | B107: 5401.5727 | C107: 411 | D107: 0.1 | E107: 100 | F107: 50.04452611
A108: 100 | B108: 5351.528174 | C108: 410 | D108: 0.1 | E108: 100 | F108: 57.29016873
A109: 101 | B109: 5294.238005 | C109: 409 | D109: 0.1 | E109: 100 | F109: 16.93578361
A110: 102 | B110: 5277.302222 | C110: 408 | D110: 0.1 | E110: 100 | F110: 70.77196933
A111: 103 | B111: 5206.530252 | C111: 407 | D111: 0.1 | E111: 100 | F111: 65.58550492
A112: 104 | B112: 5140.944747 | C112: 406 | D112: 0.1 | E112: 100 | F112: 74.41081082
A113: 105 | B113: 5066.533937 | C113: 405 | D113: 0.1 | E113: 100 | F113: 12.06128044
A114: 106 | B114: 5054.472656 | C114: 404 | D114: 0.1 | E114: 100 | F114: 78.72315848
A115: 107 | B115: 4975.749498 | C115: 403 | D115: 0.1 | E115: 100 | F115: 36.96706722
A116: 108 | B116: 4938.782431 | C116: 402 | D116: 0.1 | E116: 100 | F116: 99.82252481
A117: 109 | B117: 4838.959906 | C117: 401 | D117: 0.1 | E117: 100 | F117: 91.15253382
A118: 110 | B118: 4747.807372 | C118: 400 | D118: 0.1 | E118: 100 | F118: 81.66063585
A119: 111 | B119: 4666.146736 | C119: 399 | D119: 0.1 | E119: 100 | F119: 98.80599855
A120: 112 | B120: 4567.340738 | C120: 398 | D120: 0.1 | E120: 100 | F120: 29.76615179
A121: 113 | B121: 4537.574586 | C121: 397 | D121: 0.1 | E121: 100 | F121: 66.74402091
A122: 114 | B122: 4470.830565 | C122: 396 | D122: 0.1 | E122: 100 | F122: 12.04847895
A123: 115 | B123: 4458.782086 | C123: 395 | D123: 0.1 | E123: 100 | F123: 44.71686144
A124: 116 | B124: 4414.065224 | C124: 394 | D124: 0.1 | E124: 100 | F124: 4.270811804
A125: 117 | B125: 4409.794413 | C125: 393 | D125: 0.1 | E125: 100 | F125: 49.11480156
A126: 118 | B126: 4360.679611 | C126: 392 | D126: 0.1 | E126: 100 | F126: 77.2604652
A127: 119 | B127: 4283.419146 | C127: 391 | D127: 0.1 | E127: 100 | F127: 90.88979548
A128: 120 | B128: 4192.52935 | C128: 390 | D128: 0.1 | E128: 100 | F128: 37.23472044
A129: 121 | B129: 4155.29463 | C129: 389 | D129: 0.1 | E129: 100 | F129: 31.66601058
A130: 122 | B130: 4123.628619 | C130: 388 | D130: 0.1 | E130: 100 | F130: 68.68500205
A131: 123 | B131: 4054.943617 | C131: 387 | D131: 0.1 | E131: 100 | F131: 1.541634383
A132: 124 | B132: 4053.401983 | C132: 386 | D132: 0.1 | E132: 100 | F132: 3.778127463
A133: 125 | B133: 4049.623855 | C133: 385 | D133: 0.1 | E133: 100 | F133: 31.20492585
A134: 126 | B134: 4018.41893 | C134: 384 | D134: 0.1 | E134: 100 | F134: 82.80439012
A135: 127 | B135: 3935.614539 | C135: 383 | D135: 0.1 | E135: 100 | F135: 59.20759137
A136: 128 | B136: 3876.406948 | C136: 382 | D136: 0.1 | E136: 100 | F136: 14.63540343
A137: 129 | B137: 3861.771545 | C137: 381 | D137: 0.1 | E137: 100 | F137: 98.34105054
A138: =A137+1 -> 130 | B138: =B137-F137 -> 3763.430494 | C138: =C137-1*(A138<>1) -> 380 | D138: =MAX(D137,MIN(B138/C138,B138/C138-(C138-1)*(E137-B138/C138))) -> 0.1 | E138: =MIN(E137,MAX(B138/C138,B138/C138+(C138-1)*(B138/C138-D137))) -> 100 | F138: =RAND()*(E138-D138)+D138 -> 44.20136476
A139: 131 | B139: 3719.229129 | C139: 379 | D139: 0.1 | E139: 100 | F139: 51.81367832
A140: 132 | B140: 3667.415451 | C140: 378 | D140: 0.1 | E140: 100 | F140: 26.46063256
A141: 133 | B141: 3640.954819 | C141: 377 | D141: 0.1 | E141: 100 | F141: 50.48746324
A142: 134 | B142: 3590.467355 | C142: 376 | D142: 0.1 | E142: 100 | F142: 78.2053721
A143: 135 | B143: 3512.261983 | C143: 375 | D143: 0.1 | E143: 100 | F143: 24.92585897
A144: 136 | B144: 3487.336124 | C144: 374 | D144: 0.1 | E144: 100 | F144: 61.00577736
A145: 137 | B145: 3426.330347 | C145: 373 | D145: 0.1 | E145: 100 | F145: 57.96437186
A146: 138 | B146: 3368.365975 | C146: 372 | D146: 0.1 | E146: 100 | F146: 39.0154997
A147: 139 | B147: 3329.350475 | C147: 371 | D147: 0.1 | E147: 100 | F147: 99.74912029
A148: 140 | B148: 3229.601355 | C148: 370 | D148: 0.1 | E148: 100 | F148: 50.58748535
A149: 141 | B149: 3179.01387 | C149: 369 | D149: 0.1 | E149: 100 | F149: 18.71749772
A150: 142 | B150: 3160.296372 | C150: 368 | D150: 0.1 | E150: 100 | F150: 94.59157815
A151: 143 | B151: 3065.704794 | C151: 367 | D151: 0.1 | E151: 100 | F151: 29.68667528
A152: 144 | B152: 3036.018118 | C152: 366 | D152: 0.1 | E152: 100 | F152: 65.7058449
A153: 145 | B153: 2970.312274 | C153: 365 | D153: 0.1 | E153: 100 | F153: 64.14533331
A154: 146 | B154: 2906.16694 | C154: 364 | D154: 0.1 | E154: 100 | F154: 73.38576243
A155: 147 | B155: 2832.781178 | C155: 363 | D155: 0.1 | E155: 100 | F155: 4.105295607
A156: 148 | B156: 2828.675882 | C156: 362 | D156: 0.1 | E156: 100 | F156: 99.55863604
A157: 149 | B157: 2729.117246 | C157: 361 | D157: 0.1 | E157: 100 | F157: 71.40011051
A158: 150 | B158: 2657.717136 | C158: 360 | D158: 0.1 | E158: 100 | F158: 92.41986981
A159: 151 | B159: 2565.297266 | C159: 359 | D159: 0.1 | E159: 100 | F159: 62.79660745
A160: 152 | B160: 2502.500658 | C160: 358 | D160: 0.1 | E160: 100 | F160: 38.84569147
A161: 153 | B161: 2463.654967 | C161: 357 | D161: 0.1 | E161: 100 | F161: 56.70371308
A162: 154 | B162: 2406.951254 | C162: 356 | D162: 0.1 | E162: 100 | F162: 68.98548741
A163: 155 | B163: 2337.965766 | C163: 355 | D163: 0.1 | E163: 100 | F163: 71.16299922
A164: 156 | B164: 2266.802767 | C164: 354 | D164: 0.1 | E164: 100 | F164: 88.65419592
A165: 157 | B165: 2178.148571 | C165: 353 | D165: 0.1 | E165: 100 | F165: 48.71982785
A166: 158 | B166: 2129.428743 | C166: 352 | D166: 0.1 | E166: 100 | F166: 58.25241158
A167: 159 | B167: 2071.176332 | C167: 351 | D167: 0.1 | E167: 100 | F167: 15.26431201
A168: 160 | B168: 2055.91202 | C168: 350 | D168: 0.1 | E168: 100 | F168: 33.00339821
A169: 161 | B169: 2022.908622 | C169: 349 | D169: 0.1 | E169: 100 | F169: 73.13272686
A170: 162 | B170: 1949.775895 | C170: 348 | D170: 0.1 | E170: 100 | F170: 47.26751747
A171: 163 | B171: 1902.508377 | C171: 347 | D171: 0.1 | E171: 100 | F171: 99.85430165
A172: 164 | B172: 1802.654076 | C172: 346 | D172: 0.1 | E172: 100 | F172: 69.25541343
A173: 165 | B173: 1733.398662 | C173: 345 | D173: 0.1 | E173: 100 | F173: 68.2746775
A174: 166 | B174: 1665.123985 | C174: 344 | D174: 0.1 | E174: 100 | F174: 23.80606754
A175: 167 | B175: 1641.317917 | C175: 343 | D175: 0.1 | E175: 100 | F175: 16.28532906
A176: 168 | B176: 1625.032588 | C176: 342 | D176: 0.1 | E176: 100 | F176: 42.32038444
A177: 169 | B177: 1582.712204 | C177: 341 | D177: 0.1 | E177: 100 | F177: 91.23686064
A178: 170 | B178: 1491.475343 | C178: 340 | D178: 0.1 | E178: 100 | F178: 81.13945164
A179: 171 | B179: 1410.335891 | C179: 339 | D179: 0.1 | E179: 100 | F179: 36.4211741
A180: 172 | B180: 1373.914717 | C180: 338 | D180: 0.1 | E180: 100 | F180: 87.25864919
A181: 173 | B181: 1286.656068 | C181: 337 | D181: 0.1 | E181: 100 | F181: 83.12568888
A182: 174 | B182: 1203.530379 | C182: 336 | D182: 0.1 | E182: 100 | F182: 62.89075114
A183: 175 | B183: 1140.639628 | C183: 335 | D183: 0.1 | E183: 100 | F183: 88.64320297
A184: 176 | B184: 1051.996425 | C184: 334 | D184: 0.1 | E184: 100 | F184: 32.74982213
A185: 177 | B185: 1019.246603 | C185: 333 | D185: 0.1 | E185: 100 | F185: 94.73199049
A186: 178 | B186: 924.5146126 | C186: 332 | D186: 0.1 | E186: 100 | F186: 31.51923252
A187: 179 | B187: 892.99538 | C187: 331 | D187: 0.1 | E187: 100 | F187: 17.64423387
A188: 180 | B188: 875.3511462 | C188: 330 | D188: 0.1 | E188: 100 | F188: 63.15225624
A189: 181 | B189: 812.1988899 | C189: 329 | D189: 0.1 | E189: 100 | F189: 80.42061575
A190: 182 | B190: 731.7782742 | C190: 328 | D190: 0.1 | E190: 100 | F190: 88.52975812
A191: 183 | B191: 643.248516 | C191: 327 | D191: 0.1 | E191: 100 | F191: 21.54820643
A192: 184 | B192: 621.7003096 | C192: 326 | D192: 0.1 | E192: 100 | F192: 28.78890113
A193: 185 | B193: 592.9114085 | C193: 325 | D193: 0.1 | E193: 100 | F193: 11.52410887
A194: 186 | B194: 581.3872996 | C194: 324 | D194: 0.1 | E194: 100 | F194: 35.52360775
A195: 187 | B195: 545.8636919 | C195: 323 | D195: 0.1 | E195: 100 | F195: 68.96452129
A196: 188 | B196: 476.8991706 | C196: 322 | D196: 0.1 | E196: 100 | F196: 28.04119159
A197: 189 | B197: 448.857979 | C197: 321 | D197: 0.1 | E197: 100 | F197: 77.51363933
A198: 190 | B198: 371.3443397 | C198: 320 | D198: 0.1 | E198: 100 | F198: 11.13985892
A199: 191 | B199: 360.2044807 | C199: 319 | D199: 0.1 | E199: 100 | F199: 10.27971446
A200: 192 | B200: 349.9247663 | C200: 318 | D200: 0.1 | E200: 100 | F200: 73.0556086
A201: 193 | B201: 276.8691577 | C201: 317 | D201: 0.1 | E201: 100 | F201: 14.70303635
A202: =A201+1 -> 194 | B202: =B201-F201 -> 262.1661213 | C202: =C201-1*(A202<>1) -> 316 | D202: =MAX(D201,MIN(B202/C202,B202/C202-(C202-1)*(E201-B202/C202))) -> 0.1 | E202: =MIN(E201,MAX(B202/C202,B202/C202+(C202-1)*(B202/C202-D201))) -> 100 | F202: =RAND()*(E202-D202)+D202 -> 10.01732055
... 315 more rows
